bitfinex-derivatives/quotes_ETHF0:USTF0_20250604
["timestamp","ask_amount","ask_price","bid_price","bid_amount"]
[1749040232585,2.00335,2622.7,2622.5,0.76218]
[1749040232784,2.00335,2622.7,2622.6,0.76217]
[1749040233084,1.2412,2622.7,2622.6,0.76217]
[1749040233285,1.2412,2622.7,2622.6,5.67117]
[1749040234891,1.2412,2622.7,2622.6,4.909]
[1749040234892,2.00334,2622.7,2622.6,4.909]
[1749040235788,2.00334,2622.7,2622.6,5.67117]
[1749040237085,5.21114,2622.7,2622.6,5.67117]
[1749040237486,1.2412,2622.7,2622.6,5.67117]
[1749040237685,2.00334,2622.7,2622.6,5.67117]
[1749040238288,2.00334,2622.7,2622.6,4.909]
[1749040238485,5.21114,2622.7,2622.6,4.909]
[1749040238685,4.449,2622.7,2622.6,5.67117]
[1749040238886,1.2412,2622.7,2622.6,5.67117]
[1749040241980,0.6354,2622.9,2622.8,0.76211]
[1749040242186,3.4819341,2622.9,2622.8,0.76211]
[1749040242387,2.7198541,2622.9,2622.8,0.76211]
[1749040243389,3.4819341,2622.9,2622.8,0.76211]
[1749040243799,0.7622,2622.6,2622.5,0.76218]
[1749040243996,2.7198541,2622.9,2622.5,4.897]
[1749040243997,1.8832,2622.9,2622.5,4.897]
[1749040244198,1.8832,2622.9,2622.8,0.76211]
[1749040245392,0.651,2623.0,2622.9,0.76208]
[1749040245688,3.96977,2623.3,2623.2,0.76199]
[1749040245983,4.61967,2623.3,2623.2,0.76199]
[1749040246187,5.45644183,2623.3,2623.2,0.76199]
[1749040246387,4.69447183,2623.3,2623.2,0.76199]
[1749040247687,1.48667183,2623.3,2623.2,0.76199]
[1749040249094,0.83677183,2623.3,2623.2,0.76199]
[1749040249705,0.6537,2623.4,2623.3,0.76196]
[1749040249895,1.49119805,2623.4,2623.3,5.65796]
[1749040250094,3.8615,2623.4,2623.3,5.65796]
[1749040250295,0.76201,2623.2,2623.1,0.762]
[1749040250493,0.76198,2623.3,2622.8,4.896]
[1749040250701,0.83847323,2623.2,2623.1,0.76199]
[1749040254201,1.60046323,2623.2,2623.1,0.76199]
[1749040254410,1.60128133,2623.2,2623.1,0.76199]
[1749040254707,0.76217,2622.7,2622.6,0.76215]
[1749040254894,0.76222,2622.5,2622.4,0.76218]
[1749040255099,1.2723,2622.6,2622.5,0.7622]
[1749040255298,2.11141033,2622.6,2622.5,0.7622]
[1749040255698,2.11142211,2622.6,2622.5,0.7622]
[1749040255902,2.87359211,2622.6,2622.5,0.7622]
[1749040256098,2.11142211,2622.6,2622.5,0.7622]
[1749040256498,1.2723,2622.6,2622.5,0.7622]
[1749040256801,2.11137344,2622.6,2622.5,0.7622]
[1749040258603,2.11166882,2622.6,2622.5,0.7622]
[1749040259509,1.47596882,2622.6,2622.5,0.7622]
[1749040260300,0.6448,2623.0,2622.9,0.76208]
[1749040261501,0.6168,2623.1,2623.0,0.76205]
[1749040262404,1.37882,2623.1,2623.0,0.76205]
[1749040262604,0.6168,2623.1,2623.0,0.76205]
[1749040262804,0.6168,2623.1,2623.0,5.65805]
[1749040264106,2.68822,2623.1,2623.0,0.76205]
[1749040264410,1.9262,2623.1,2623.0,0.76205]
[1749040265404,1.9262,2623.1,2622.9,0.76206]
[1749040265613,1.9262,2623.1,2622.9,4.896]
[1749040265809,1.9262,2623.1,2623.0,0.76205]
[1749040266908,2.68822,2623.1,2623.0,0.76205]
[1749040267708,2.68824,2623.1,2623.0,0.76205]
[1749040267909,0.76208,2622.9,2622.8,5.65808]
[1749040268104,0.76207,2623.0,2622.9,0.76206]
[1749040268407,0.76212,2622.8,2622.7,0.76212]
[1749040268606,1.2721,2623.0,2622.8,0.76211]
[1749040268607,4.5955,2622.9,2622.8,0.76211]
[1749040268807,3.8334,2622.9,2622.8,0.76211]
[1749040269005,0.6256,2622.9,2622.8,0.76211]
[1749040269205,2.65978,2622.9,2622.8,0.76211]
[1749040269715,2.65978,2622.9,2622.5,6.7915]
[1749040269716,0.76212,2622.8,2622.7,0.76211]
[1749040270018,1.2505,2622.8,2622.7,0.76211]
[1749040271806,0.6256,2622.9,2622.8,0.76211]
[1749040272015,1.8673,2623.1,2623.0,0.76205]
[1749040272210,3.2078,2623.2,2623.1,0.76202]
[1749040272910,5.7344,2623.7,2623.6,0.76188]
[1749040273807,5.1032,2623.7,2623.6,0.76188]
[1749040274009,0.00572727,2623.8,2623.7,0.76185]
[1749040274609,1.22252727,2623.8,2623.7,0.76185]
[1749040274911,0.00572727,2623.8,2623.7,0.76185]
[1749040276609,0.00572727,2623.8,2623.7,4.886]
[1749040276809,0.00572727,2623.8,2623.7,5.64785]
[1749040278119,3.2078,2624.1,2624.0,0.76176]
[1749040278416,5.11197,2624.4,2624.0,4.886]
[1749040278710,0.76182,2623.8,2623.7,8.85563]
[1749040279010,0.76182,2623.8,2623.7,4.886]
[1749040279216,0.76188,2623.6,2623.5,0.00571592]
[1749040280718,1.2853,2623.7,2623.5,0.00571592]
[1749040281014,0.76188,2623.6,2623.5,0.76761592]
[1749040281211,1.2853,2623.7,2623.5,0.76761592]
[1749040281405,1.2853,2623.7,2623.6,0.76188]
[1749040281611,1.2853,2623.7,2623.5,0.76760592]
[1749040281811,1.2853,2623.7,2623.6,0.76188]
[1749040282316,2.04716,2623.7,2623.6,0.76188]
[1749040282513,1.2853,2623.7,2623.6,0.76188]
[1749040283217,1.2853,2623.7,2623.5,0.00571592]
[1749040283417,1.2853,2623.7,2623.6,0.76188]
[1749040283820,1.2839,2624.0,2623.5,0.00571592]
[1749040283821,2.04568,2624.0,2623.5,0.00571592]
[1749040284017,2.04568,2624.0,2623.9,0.76179]
[1749040284521,1.2839,2624.0,2623.9,0.76179]
[1749040285023,0.76168,2624.3,2624.2,0.76169]
[1749040285218,0.76176,2624.0,2623.9,4.885]
[1749040285618,0.76179,2623.9,2623.8,5.6468]
[1749040285815,3.2078,2624.4,2623.8,4.885]
[1749040286125,3.2078,2624.4,2624.1,0.76172]
[1749040286126,0.76171,2624.2,2624.1,0.76172]
[1749040286311,0.76172,2624.2,2624.1,0.76173]
[1749040287023,0.7618,2623.9,2623.8,5.6468]
[1749040287522,0.7618,2623.9,2623.8,0.7618]
[1749040288016,0.7618,2623.9,2623.6,3.2078]
[1749040288017,0.6539,2624.0,2623.6,4.885]
[1749040288217,0.76186,2623.7,2623.6,0.76186]
[1749040288417,0.76188,2623.6,2623.5,4.89071592]
[1749040288719,0.76188,2623.6,2623.5,0.00571592]
[1749040288916,0.76188,2623.6,2623.5,0.76762592]
[1749040289116,0.76188,2623.6,2623.5,0.00571592]
[1749040289316,0.76188,2623.6,2623.5,0.76762592]
[1749040289621,0.76188,2623.6,2623.5,0.00571592]
[1749040289819,0.76188,2623.6,2623.5,0.76762592]
[1749040290120,0.76188,2623.6,2623.5,0.00571592]
[1749040290624,0.76205,2623.0,2622.9,3.2078]
[1749040290823,0.76205,2623.0,2622.5,0.7622]
[1749040290824,0.76206,2623.0,2622.5,0.7622]
[1749040291119,1.90494,2623.3,2622.8,0.76209]
[1749040291120,0.6224,2622.9,2622.8,0.76209]
[1749040291324,6.23222564,2623.4,2622.8,0.76209]
[1749040291325,0.6505,2623.2,2623.1,0.76202]
[1749040291517,0.6505,2623.2,2622.8,5.11305]
[1749040291518,0.76203,2623.1,2622.8,3.2078]
[1749040291717,1.27217809,2623.2,2622.7,4.89071592]
[1749040291927,1.27217809,2623.2,2622.9,0.76207]
[1749040292131,0.76202,2623.1,2622.9,0.76207]
[1749040292322,0.76205,2623.0,2622.8,0.76209]
[1749040292525,1.27217809,2623.2,2623.0,0.76205]
[1749040292526,0.76204,2623.1,2623.0,0.76205]
[1749040292729,1.27217809,2623.2,2623.1,0.76202]
[1749040293729,1.27217809,2623.2,2622.7,4.89071592]
[1749040293921,1.27217809,2623.2,2622.9,0.76207]
[1749040294125,1.27217809,2623.2,2622.8,4.885]
[1749040294325,0.76203,2623.1,2623.0,0.76204]
[1749040294523,0.76203,2623.1,2622.7,6.79604592]
[1749040294524,1.27217809,2623.2,2623.1,0.76202]
[1749040296123,0.00567809,2623.2,2623.1,0.76202]
[1749040296429,0.00567809,2623.2,2623.1,8.85482]
[1749040297230,1.2429,2623.6,2623.5,0.76191]
[1749040297532,0.6038,2623.6,2623.5,0.76191]
[1749040297924,1.36568,2623.6,2623.5,0.76191]
[1749040298322,0.6038,2623.6,2623.5,0.76191]
[1749040298529,0.76191,2623.5,2623.4,0.76191]
[1749040298728,0.76193,2623.5,2623.4,0.76193]
[1749040299631,0.6038,2623.6,2623.5,0.76191]
[1749040301241,1.36568,2623.6,2623.5,0.76191]
[1749040301641,0.6391,2623.9,2623.4,5.11263]
[1749040301841,0.6172,2623.8,2623.4,5.11263]
[1749040302038,0.6172,2623.8,2623.4,3.2078]
[1749040302237,0.6172,2623.8,2623.4,8.0828]
[1749040302238,0.76191,2623.5,2623.4,8.0828]
[1749040302739,0.76193,2623.4,2623.3,0.76194]
[1749040303131,0.76193,2623.5,2623.4,0.76193]
[1749040303332,3.2078,2623.7,2623.2,4.875]
[1749040303539,0.6248,2623.4,2623.3,0.76196]
[1749040304142,1.8587,2623.4,2623.3,0.76196]
[1749040304638,1.8587,2623.4,2623.1,3.2078]
[1749040304639,0.76199,2623.3,2623.1,3.2078]
[1749040304943,0.76199,2623.3,2622.9,1.90518]
[1749040304944,0.76204,2623.1,2623.0,0.76204]
[1749040305340,0.6355,2623.2,2623.1,0.76202]
[1749040306441,0.6355,2623.2,2623.1,3.96982]
[1749040306642,3.02442564,2623.8,2623.3,0.76196]
[1749040306841,3.17708,2623.8,2623.2,4.876]
[1749040307046,0.76191,2623.5,2623.4,0.76191]
[1749040308245,3.96966,2623.7,2623.6,0.76188]
[1749040308448,4.29692564,2623.8,2623.7,0.76185]
[1749040308449,1.2725,2623.8,2623.7,0.76185]
[1749040308636,0.76186,2623.7,2623.6,0.76185]
[1749040309042,1.2725,2623.8,2623.7,0.76185]
[1749040309043,2.03434,2623.8,2623.7,0.76185]
[1749040309249,2.03434,2623.8,2623.4,5.11264]
[1749040309250,1.2725,2623.8,2623.4,5.11264]
[1749040309441,1.2725,2623.8,2623.7,0.76185]
[1749040309639,2.03432,2623.8,2623.7,0.76185]
[1749040309942,0.76187,2623.7,2623.6,0.76187]
[1749040310145,0.7619,2623.6,2623.5,0.7619]
[1749040311239,0.76186,2623.7,2623.6,0.76186]
[1749040312346,0.76188,2623.6,2623.5,0.76189]
[1749040312642,0.76186,2623.7,2623.6,0.76186]
[1749040312846,2.03433,2623.8,2623.7,0.76185]
[1749040313347,0.76185,2623.7,2623.6,0.76185]
[1749040313549,2.03434,2623.8,2623.7,0.76185]
[1749040314137,0.76187,2623.7,2623.6,0.76187]
[1749040314748,2.03434,2623.8,2623.7,0.76185]
[1749040316049,1.2725,2623.8,2623.5,3.2078]
[1749040316255,1.2725,2623.8,2623.5,4.875]
[1749040316552,0.76188,2623.6,2623.5,0.76188]
[1749040316953,0.76187,2623.7,2623.6,0.76186]
[1749040317949,2.03433,2623.8,2623.7,0.76185]
[1749040318148,1.2725,2623.8,2623.7,0.76185]
[1749040318348,6.99400564,2624.0,2623.9,0.76179]
[1749040318547,0.7618,2623.9,2623.8,0.7618]
[1749040318753,0.76183,2623.8,2623.7,0.76183]
[1749040319953,0.76188,2623.6,2623.5,3.96969]
[1749040320553,0.76188,2623.6,2623.5,8.84469]
[1749040320852,0.76188,2623.6,2623.5,8.84468]
[1749040321052,1.2533,2623.7,2623.6,0.76188]
[1749040321555,1.2533,2623.7,2623.5,8.0828]
[1749040321749,2.01517,2623.7,2623.6,0.76188]
[1749040323755,1.2533,2623.7,2623.6,0.76188]
[1749040325045,2.5849,2623.7,2623.6,0.76188]
[1749040325456,0.76188,2623.6,2623.5,8.84468]
[1749040325650,0.76195,2623.4,2623.3,0.76195]
[1749040325852,4.5394,2623.6,2622.9,5.11298]
[1749040326051,0.76205,2623.0,2622.9,3.2078]
[1749040327353,0.76211,2622.8,2622.7,0.00571592]
[1749040327554,0.76211,2622.8,2622.7,0.76785592]
[1749040327948,0.76211,2622.8,2622.7,0.76783592]
[1749040327949,0.6275,2622.8,2622.7,0.76783592]
[1749040328150,1.38961,2622.8,2622.7,0.76783592]
[1749040328350,1.8662,2622.8,2622.7,0.76783592]
[1749040331559,8.77151,2622.8,2622.1,3.2078]
[1749040331756,3.2078,2622.5,2622.1,3.2078]
[1749040332063,1.2225,2622.4,2622.3,0.76225]
[1749040332862,0.00571592,2622.6,2622.5,0.7622]
[1749040334561,0.7622,2622.5,2622.4,3.97001]
[1749040334756,4.426,2622.5,2622.2,0.76228]
[1749040334958,4.426,2622.5,2622.3,0.76225]
[1749040334959,0.76225,2622.4,2622.3,0.76225]
[1749040335158,1.2182,2622.4,2622.3,0.76225]
[1749040335563,0.00571592,2622.6,2622.5,0.7622]
[1749040335962,0.00571592,2622.6,2622.3,3.2078]
[1749040336263,1.22391592,2622.6,2622.2,0.76228]
[1749040336464,1.22391592,2622.6,2622.1,0.00571592]
[1749040336465,1.22391592,2622.6,2622.4,0.76222]
[1749040336663,0.76221,2622.5,2622.4,0.76222]
[1749040336859,1.22391592,2622.6,2622.5,0.7622]
[1749040336860,1.98609592,2622.6,2622.5,0.7622]
[1749040337064,0.76789592,2622.6,2622.5,0.7622]
[1749040337262,0.00571592,2622.6,2622.5,0.7622]
[1749040338060,0.00571592,2622.6,2622.3,1.90563]
[1749040338061,0.00571592,2622.6,2622.2,1.9057]
[1749040338262,0.76790592,2622.6,2622.5,0.7622]
[1749040338463,0.00571592,2622.6,2622.5,0.7622]
[1749040339976,0.00571592,2622.6,2622.5,5.7622]
[1749040340170,0.00571592,2622.6,2622.5,6.982]
[1749040340476,0.00571592,2622.6,2622.5,10.6292]
[1749040340664,0.00571592,2622.6,2622.5,11.849]
[1749040341065,0.00571592,2622.6,2622.5,6.982]
[1749040341264,0.00571592,2622.6,2622.5,5.7622]
[1749040341467,0.00571592,2622.6,2622.5,10.6292]
[1749040342358,5.92e-06,2622.6,2622.5,11.849]
[1749040343467,5.92e-06,2622.6,2622.5,52.649]
[1749040343658,5.92e-06,2622.6,2622.5,70.709]
[1749040343861,5.92e-06,2622.6,2622.5,47.782]
[1749040344061,5.92e-06,2622.6,2622.5,70.709]
[1749040344262,5.92e-06,2622.6,2622.5,65.709]
[1749040344461,5.92e-06,2622.6,2622.5,70.709]
[1749040344968,5.92e-06,2622.6,2622.5,0.7622]
[1749040345357,5.92e-06,2622.6,2622.4,1.3827]
[1749040345563,0.76218592,2622.6,2622.5,0.7622]
[1749040345871,5.92e-06,2622.6,2622.5,0.7622]
[1749040346075,5.92e-06,2622.6,2622.3,3.2078]
[1749040346368,5.92e-06,2622.6,2622.5,0.7622]
[1749040346871,0.64770592,2622.6,2622.5,0.7622]
[1749040351070,5.92e-06,2622.6,2622.5,5.6292]
[1749040351662,5.92e-06,2622.6,2622.5,10.6292]
[1749040351870,5.92e-06,2622.6,2622.5,12.471]
[1749040353781,5.92e-06,2622.6,2622.5,7.604]
[1749040354168,5.92e-06,2622.6,2622.5,11.2519]
[1749040354973,5.92e-06,2622.6,2622.5,6.3849]
[1749040355174,5.92e-06,2622.6,2622.5,11.2519]
[1749040355479,5.92e-06,2622.6,2622.5,12.4616]
[1749040356467,5.92e-06,2622.6,2622.5,7.4616]
[1749040358278,5.92e-06,2622.6,2622.5,12.4616]
[1749040359084,5.92e-06,2622.6,2622.5,53.2616]
[1749040360782,0.6238,2623.6,2622.5,53.2616]
[1749040360783,0.6238,2623.6,2623.5,0.76191]
[1749040360976,0.6238,2623.6,2623.5,5.61891]
[1749040361176,0.6251,2623.8,2623.7,0.76185]
[1749040361575,1.38692,2623.8,2623.7,0.76185]
[1749040362281,5.6251,2623.8,2623.5,0.00571592]
[1749040362584,0.76192,2623.5,2623.4,0.7619]
[1749040362785,0.7619,2623.6,2623.5,0.76188]
[1749040363082,0.76196,2623.4,2623.3,0.76194]
[1749040363280,0.76199,2623.2,2623.1,3.2078]
[1749040363580,0.76206,2623.0,2622.9,0.00571592]
[1749040363776,0.76205,2623.0,2622.9,0.00571592]
[1749040363977,0.76205,2623.0,2622.9,0.76778592]
[1749040364172,0.6285,2623.0,2622.9,0.76778592]
[1749040364575,1.8973,2623.0,2622.9,0.76778592]
[1749040365081,10.1051,2623.0,2622.2,3.2078]
[1749040365280,10.1051,2623.0,2621.9,1.1956]
[1749040365281,3.2078,2622.7,2622.3,0.76224]
[1749040365678,3.2078,2622.7,2622.0,4.857]
[1749040365884,0.76218,2622.6,2622.2,0.76226]
[1749040366488,0.663,2622.5,2622.4,0.76222]
[1749040366685,1.276,2622.5,2622.4,0.76222]
[1749040366880,1.276,2622.5,2622.3,0.76225]
[1749040367086,1.276,2622.5,2622.1,0.00571592]
[1749040367286,1.276,2622.5,2622.4,0.76222]
[1749040367477,1.276,2622.5,2622.2,0.76228]
[1749040367682,1.276,2622.5,2622.4,0.76222]
[1749040367882,1.276,2622.5,2622.3,0.76224]
[1749040368182,1.276,2622.5,2622.1,0.00571592]
[1749040368385,1.3152,2622.4,2622.2,0.76226]
[1749040368684,2.07743,2622.4,2622.2,0.76228]
[1749040368886,1.3152,2622.4,2622.2,0.76228]
[1749040369082,1.3152,2622.4,2622.1,0.76800592]
[1749040369289,2.07743,2622.4,2622.2,0.76228]
[1749040369684,2.07743,2622.4,2622.1,0.00571592]
[1749040369685,0.76228,2622.2,2622.1,0.00571592]
[1749040373178,0.76227,2622.3,2622.1,0.00571592]
[1749040373382,1.2767,2622.2,2622.1,0.76801592]
[1749040373789,2.03898,2622.2,2622.1,0.76801592]
[1749040374186,2.03898,2622.2,2622.1,0.00571592]
[1749040375392,2.03898,2622.2,2622.1,0.76802592]
[1749040375793,1.2767,2622.2,2622.1,0.76802592]
[1749040376191,1.2767,2622.2,2622.1,0.00571592]
[1749040376396,2.03898,2622.2,2622.1,0.00571592]
[1749040376587,2.03898,2622.2,2622.1,0.76802592]
[1749040376894,2.03898,2622.2,2622.1,0.00571592]
[1749040377794,7.03898,2622.2,2622.1,0.00571592]
[1749040378504,2.03898,2622.2,2622.1,0.00571592]
[1749040379304,0.76249,2621.5,2621.4,3.2078]
[1749040379607,0.76247,2621.6,2621.5,0.76248]
[1749040380307,0.76246,2621.6,2621.5,0.76247]
[1749040380497,0.76249,2621.5,2621.4,3.9703]
[1749040380698,0.76249,2621.5,2621.4,3.2078]
[1749040380898,0.76249,2621.5,2621.3,0.00571592]
[1749040380899,0.76252,2621.4,2621.3,0.00571592]
[1749040381806,0.76252,2621.4,2621.3,0.76825592]
[1749040382003,0.76252,2621.4,2621.3,0.00571592]
[1749040382206,3.2078,2621.7,2621.3,0.00571592]
[1749040382400,0.76252,2621.4,2621.3,0.76824592]
[1749040382600,3.2078,2621.7,2621.3,0.76824592]
[1749040382601,0.7625,2621.5,2621.3,0.76824592]
[1749040382800,0.7625,2621.5,2621.4,0.76252]
[1749040383011,3.2078,2621.7,2621.3,0.76823592]
[1749040383406,0.76246,2621.6,2621.5,0.76247]
[1749040383906,3.2078,2621.7,2621.6,0.76246]
[1749040384104,3.97023,2621.7,2621.6,0.76246]
[1749040384308,0.76246,2621.6,2621.5,0.76247]
[1749040384509,3.2078,2621.7,2621.3,0.00571592]
[1749040384811,0.76247,2621.6,2621.5,0.76248]
[1749040385008,3.2078,2621.7,2621.6,0.76246]
[1749040385209,3.97023,2621.7,2621.6,0.76246]
[1749040385397,0.76246,2621.6,2621.5,0.76247]
[1749040385600,0.76251,2621.4,2621.3,0.76823592]
[1749040385798,0.76251,2621.4,2621.3,0.00571592]
[1749040386210,3.97031,2621.4,2621.3,0.00571592]
[1749040387704,3.97031,2621.4,2620.3,5.11488]
[1749040387705,1.90661,2621.0,2620.5,0.76276]
[1749040387911,1.90661,2621.0,2620.3,3.2078]
[1749040387912,3.8611,2620.9,2620.3,3.2078]
[1749040388212,3.8611,2620.9,2620.2,1.90715]
[1749040388213,0.76284,2620.3,2620.2,0.76286]
[1749040388508,0.76284,2620.3,2620.1,0.76288]
[1749040388712,1.91268592,2620.5,2620.0,0.7629]
[1749040389007,1.91268592,2620.5,2619.9,3.21351592]
[1749040389008,0.00571592,2620.5,2619.9,3.21351592]
[1749040389216,0.00571592,2620.5,2619.9,0.00571592]
[1749040389217,3.2078,2620.3,2619.9,0.00571592]
[1749040389410,0.76292,2620.0,2619.9,0.00571592]
[1749040389717,2.02557,2620.2,2620.0,0.76291]
[1749040389911,2.02557,2620.2,2619.9,0.76864592]
[1749040389912,1.2627,2620.2,2619.9,0.76864592]
[1749040390107,1.2627,2620.2,2619.9,0.00571592]
[1749040390502,0.76292,2620.0,2619.9,0.00571592]
[1749040390703,3.2078,2620.0,2619.3,3.2078]
[1749040391404,0.7631,2619.4,2619.2,0.76315]
[1749040391614,3.2078,2620.0,2619.3,0.7631]
[1749040391615,0.76305,2619.6,2619.3,0.7631]
[1749040391807,3.2078,2620.0,2619.2,0.00572716]
[1749040391808,1.90738,2619.9,2619.2,0.00572716]
[1749040392008,0.76312,2619.3,2619.2,0.00572716]
[1749040393411,5.73227,2619.4,2618.5,3.2078]
[1749040393710,1.90782,2619.3,2618.5,3.2078]
[1749040393913,3.8245,2619.4,2618.5,3.2078]
[1749040394111,3.8245,2619.4,2617.8,3.2078]
[1749040394112,0.76353,2617.9,2617.8,3.2078]
[1749040394307,3.97123,2618.3,2617.6,0.00383683]
[1749040394619,3.97123,2618.3,2617.6,1.24153683]
[1749040394620,0.00572716,2618.1,2617.6,1.24153683]
[1749040394806,0.00572716,2618.1,2617.8,3.2078]
[1749040395114,0.00572716,2618.1,2618.0,0.7635]
[1749040395809,0.76329,2618.8,2618.4,0.76337]
[1749040396009,0.76329,2618.8,2617.9,0.6462]
[1749040396010,3.2078,2618.9,2618.3,3.2078]
[1749040396219,1.8703,2619.0,2618.3,3.2078]
[1749040396419,2.00687,2618.8,2618.5,0.76334]
[1749040396810,0.00572716,2618.9,2618.3,3.2078]
[1749040397014,0.00572716,2618.9,2618.8,0.76327]
[1749040397215,0.00572716,2618.9,2618.6,3.2078]
[1749040397520,3.21352716,2618.9,2618.2,3.2078]
[1749040397718,0.00572716,2618.9,2618.5,3.2078]
[1749040398015,1.90833,2618.6,2617.9,0.6462]
[1749040398210,3.2078,2618.4,2617.9,3.854]
[1749040398412,1.906,2618.5,2617.9,5.76284]
[1749040398616,1.2539,2618.5,2618.3,0.7634]
[1749040398820,1.2539,2618.5,2618.4,0.76339]
[1749040399017,0.76328,2618.8,2618.5,0.76335]
[1749040399221,2.02288716,2618.9,2618.2,3.2078]
[1749040399420,0.76327,2618.8,2618.5,0.76335]
[1749040399718,1.25962716,2618.9,2618.6,0.76332]
[1749040399918,1.25962716,2618.9,2618.5,0.76335]
[1749040400323,1.25962716,2618.9,2618.2,4.4455]
[1749040400620,0.76327,2618.8,2618.4,0.76337]
[1749040400811,1.2956,2618.7,2618.4,0.76337]
[1749040401014,1.2956,2618.7,2618.2,3.2078]
[1749040401208,0.76335,2618.6,2618.2,3.2078]
[1749040401523,1.2956,2618.7,2618.6,0.76333]
[1749040401724,1.2956,2618.7,2618.5,0.76334]
[1749040402022,1.2956,2618.7,2618.2,3.2078]
[1749040402023,2.0589,2618.7,2618.4,0.76337]
[1749040402216,2.0589,2618.7,2618.2,8.0638]
[1749040402418,1.2956,2618.7,2618.2,3.2078]
[1749040402616,1.2956,2618.7,2618.2,3.97123]
[1749040402922,1.2956,2618.7,2618.2,3.2078]
[1749040403117,2.05892,2618.7,2618.3,0.76342]
[1749040403310,1.2956,2618.7,2618.2,3.2078]
[1749040403515,2.05892,2618.7,2618.2,3.2078]
[1749040403820,2.05892,2618.7,2618.4,0.76339]
[1749040404015,1.2956,2618.7,2618.5,0.76335]
[1749040404908,2.0589,2618.7,2618.4,0.76337]
[1749040405312,0.76335,2618.6,2618.3,0.76341]
[1749040405515,1.97315,2618.6,2618.2,3.2078]
[1749040405723,1.2098,2618.6,2618.5,0.76336]
[1749040406322,1.97315,2618.6,2618.3,0.76342]
[1749040406625,0.76337,2618.5,2618.2,3.2078]
[1749040406822,1.97314,2618.6,2618.4,0.76339]
[1749040407322,1.2098,2618.6,2618.2,3.2078]
[1749040407519,1.97315,2618.6,2618.3,0.76342]
[1749040407718,0.00572716,2618.9,2618.2,3.2078]
[1749040407928,0.76898716,2618.9,2618.7,0.76329]
[1749040408721,0.00572716,2618.9,2618.7,0.76329]
[1749040409020,0.00572716,2618.9,2618.8,0.76327]
[1749040409228,0.00572716,2618.9,2618.7,0.76329]
[1749040409427,0.00572716,2618.9,2618.6,3.2078]
[1749040409619,0.7633,2618.7,2618.5,4.857]
[1749040409819,0.7633,2618.7,2618.6,0.76333]
[1749040410020,0.00572716,2618.9,2618.6,0.76333]
[1749040410226,0.76327,2618.8,2618.5,4.857]
[1749040410429,0.00572716,2618.9,2618.7,0.7633]
[1749040410630,0.76329,2618.8,2618.7,0.7633]
[1749040410829,0.00572716,2618.9,2618.6,0.76331]
[1749040411030,0.7633,2618.8,2618.5,8.0648]
[1749040411233,0.7633,2618.8,2618.7,0.7633]
[1749040411532,0.76898716,2618.9,2618.8,0.76327]
[1749040411726,0.00572716,2618.9,2618.8,0.76327]
[1749040412229,0.00572716,2618.9,2618.8,3.97107]
[1749040412431,0.00572716,2618.9,2618.8,0.76327]
[1749040413024,0.00572716,2618.9,2618.8,3.2078]
[1749040413327,0.76896716,2618.9,2618.8,3.97107]
[1749040413531,0.00572716,2618.9,2618.8,3.97107]
[1749040414130,0.00572716,2618.9,2618.8,0.76327]
[1749040414631,0.00572716,2618.9,2618.6,1.2187]
[1749040414632,0.76896716,2618.9,2618.6,1.2187]
[1749040414836,0.00572716,2618.9,2618.8,0.76327]
[1749040416435,0.00572716,2618.9,2618.8,6.98627]
[1749040418537,3.2078,2620.0,2618.8,6.223]
[1749040418735,3.2078,2620.0,2619.5,5.11542]
[1749040419035,0.763,2619.8,2619.7,0.76297]
[1749040419235,0.76296,2619.9,2619.8,0.76295]
[1749040419736,3.97074,2620.0,2619.9,0.76295]
[1749040420730,0.76301,2619.7,2619.6,0.00572716]
[1749040420935,3.97081,2619.7,2619.6,0.00572716]
[1749040421639,5.89721,2619.7,2619.6,0.00572716]
[1749040421829,2.68941,2619.7,2619.6,0.00572716]
[1749040423038,5.89721,2619.7,2619.6,0.00572716]
[1749040425835,3.2078,2620.0,2619.6,0.00572716]
[1749040426236,3.97081,2619.7,2619.6,0.00572716]
[1749040427236,0.76301,2619.7,2619.6,0.00572716]
[1749040427736,0.763,2619.8,2619.6,0.00572716]
[1749040427936,6.18667835,2620.0,2619.9,0.76295]
[1749040427937,3.2078,2620.0,2619.9,0.76295]
[1749040428144,0.76299,2619.8,2619.7,0.76299]
[1749040428534,2.06456,2619.9,2619.8,0.76298]
[1749040428739,1.3016,2619.9,2619.8,0.76298]
[1749040429544,3.2078,2620.0,2619.9,0.76295]
[1749040429737,3.97072,2620.0,2619.9,0.76295]
[1749040430838,0.61672716,2620.1,2620.0,0.76292]
[1749040430839,0.00572716,2620.1,2620.0,0.76292]
[1749040431143,0.76861716,2620.1,2620.0,0.76292]
[1749040431538,0.00572716,2620.1,2620.0,0.76292]
[1749040431843,0.76861716,2620.1,2620.0,0.76292]
[1749040432446,0.00572716,2620.1,2620.0,0.76292]
[1749040433244,0.76861716,2620.1,2620.0,0.76292]
[1749040433547,0.00572716,2620.1,2620.0,0.76292]
[1749040433945,0.76861716,2620.1,2620.0,5.61592]
[1749040434341,0.76292,2620.0,2619.9,8.0608]
[1749040435041,0.00572716,2620.1,2620.0,0.76292]
[1749040435636,0.00572716,2620.1,2620.0,5.61592]
[1749040436845,0.00572716,2620.1,2620.0,5.61492]
[1749040438953,0.00572716,2620.1,2620.0,6.85132]
[1749040439646,0.00572716,2620.1,2620.0,11.85132]
[1749040440554,1.90659,2621.0,2620.0,11.85132]
[1749040440555,3.2078,2621.1,2621.0,0.76263]
[1749040440750,0.7626,2621.1,2621.0,3.2078]
[1749040441253,0.76263,2621.0,2620.9,4.852]
[1749040441453,0.76263,2621.0,2620.9,5.61466]
[1749040441961,1.42573,2621.1,2621.0,0.76263]
[1749040442267,0.6631,2621.1,2621.0,0.76263]